{"text_format":"1","workbook":"xlsx","n_sheets":12,"sheets":["Page de Garde","A1","A2","A3","A4","A5","Infra","Recap","Résultats","Résultat Graphique","Décision & recom ...","RF"],"not_rendered":{"charts":2,"images":1,"macros":1,"external_links":0,"defined_names":0,"comments":0,"pivot_tables":0},"unopened":[],"bounds":{"document_bytes":16777216,"sheet_cells":100000,"rows_first":2000,"rows_last":500,"rows_between":2000,"halvings":0,"cell_chars":16384,"cell_head_chars":4096},"cells_cut":0,"cells_raw":0,"read":"whole","date_system":"1900"}

{"sheet":"Page de Garde","index":0,"n_rows":30,"n_cols":1,"rows_kept":30,"cut":false,"hidden":false,"merged":[[0,0,0,1],[2,0,2,1],[5,0,5,1],[15,0,15,1],[14,0,14,1],[7,0,7,1],[8,0,8,1],[12,0,12,1],[29,0,29,1],[10,0,10,1],[11,0,11,1],[22,0,22,1],[25,0,25,1],[27,0,27,1],[16,0,16,1],[17,0,17,1],[18,0,18,1],[19,0,19,1],[20,0,20,1],[24,0,24,1],[23,0,23,1],[21,0,21,1]]}
[]
[]
[]
[]
[]
["Grille automatisée d'Evaluation d'une offre de formation en présentiel du PRED CAMES"]
[]
["Préambule"]
["L'outil de travail, que vous vous apprêtez à utiliser, constitue une aide à la décision en vue d'évaluer une offre de formation au PRED, en faisant appel au \"référentiel qualité du CAMES pour l'évaluation de l'offre de formation des institutions d'enseignement supérieur et de recherche (ROF)\" . Pour rappel, le dossier de candidature d'une offre de formation est un rapport d'auto-évaluation de ce programme basé sur le ROF, auquel est annexé les éléments de preuve. En outre de la feuille \"Page de Garde\", les feuilles constituant la présente grille correspondent (i) aux champs à évaluer \"A1 à A5\"; (ii) à la présentation du score de l'évaluation\"Résultats\"; (iii) à la présentation graphique du score de l'évaluation \"Résultat graphique\"; (iv) à la partie réservée à la décision des évaluateurs \"Décision & recommandations\". Les champs, numérotés en cohérence avec le ROF, regroupent plusieurs références, qui se déclinent en critères. L'appréciation du niveau de mise en oeuvre d'un critère s'appuie sur la qualité des preuves apportées. Cette appréciation est portée dans les colonnes 3 à 5, selon un jugement qualitatif de type Oui entier, OUI partiel ou NON. Cela correspond quantitativement et respectivement à la notation 1, 0.5, 0. La colonne 6 est dédié aux éventuelles observations, à titre justificatif.                                                                                                                                                                                                                                                                                                                                                                                                        Pour des niveaux d'études qui n'exigent pas la recherche (DST, DUT, ...), il convient de choisir systématiquement l'option \" Oui entier\", afin de ne pas biaiser les résultats finaux. N.B: En cas de difficultés, contacter assistance_pred@cames.online.  "]
[]
["NOM DE L'ETABLISSEMENT EVALUE"]
[]
["INTITULE DE L'OFFRE OU DU DIPLÔME SOUMIS AU PRED"]
[]
[]
["SOMMAIRE"]
["A.1 Le fondement/justification de l'offre de formation"]
["A.2 L'architecure de l'offre de formation"]
["A.3 L'inscription de l'offre de formation dans un cadre national, régional et international"]
["A.4 L'organisation pédagogique de l'offre de formation"]
["A.5 La qualité des résultats et effets de la formation"]
["Infrastructures"]
["Résultats et interpretation"]
["Résultats graphiques"]
["Avis & commentaires"]
[]
[]
[]
[]
["Tous droits réservés CAMES 2018 - 2025"]

{"sheet":"A1","index":1,"n_rows":12,"n_cols":19,"rows_kept":12,"cut":false,"hidden":false,"merged":[[1,8,1,17],[1,1,1,2],[4,8,4,17],[5,8,5,17],[6,8,6,17],[8,8,8,17],[9,8,9,17],[10,8,10,17],[11,8,11,17],[3,8,3,17],[7,8,7,17]]}
[]
[null,"A.1 -FONDEMENT/JUSTIFICATION DE L’OFFRE DE FORMATION",null,null,null,"Oui entier","OUI partiel","NON","OBSERVATIONS"]
[]
[null,"A1.1","L’offre de formation répond à une demande de formation",{"$f":"SUM(VALUE(D5+D6+D7+D9+D10+D11+D12)/7)","v":0.7142857142857143}]
[null,"A1.1.1","L'ensemble des métiers du bassin pour lesquels l'on forme est déterminé",{"$f":"SUBSTITUTE(SUBSTITUTE(E5,\"3\",0),\"2\",0.5)","v":"0,5"},2,null,null,null,"Prière de préciser les prevues",null,null,null,null,null,null,null,null,null,{"$f":"VALUE(D5)","v":0.5}]
[null,"A1.1.2","La demande d'emplois estimée de la zone retenue est connue",{"$f":"SUBSTITUTE(SUBSTITUTE(E6,\"3\",0),\"2\",0.5)","v":"0"},3,null,null,null,"Preuves non disponibles",null,null,null,null,null,null,null,null,null,{"$f":"VALUE(D6)","v":0}]
[null,"A1.1.3","La formation offre des perspectives pour de nouveaux métiers","0,5",2,null,null,null,"preuves incomplètes",null,null,null,null,null,null,null,null,null,0.5]
[null,"A1.2","Des liens sont établis avec les milieux socioprofessionnels de la zone "]
[null,"A.1.2.1","Une prospection auprès des milieux socioprofessionnels a été réalisée","1",1,null,null,null,null,null,null,null,null,null,null,null,null,null,1]
[null,"A.1.2.2","Les attentes des milieux socioprofessionnels de la zone sont identifiées","1",1,null,null,null,null,null,null,null,null,null,null,null,null,null,1]
[null,"A.1.2.3","Un cadre de coopération avec les opérateurs économiques a été adopté","1",1,null,null,null,null,null,null,null,null,null,null,null,null,null,1]
[null,"A.1.2.4","Les milieux socioprofessionnels sont impliqués dans la conception de l’offre de formation","1",1,null,null,null,null,null,null,null,null,null,null,null,null,null,1]

{"sheet":"A2","index":2,"n_rows":25,"n_cols":19,"rows_kept":25,"cut":false,"hidden":false,"merged":[[1,1,1,2],[1,8,1,17],[3,8,3,17],[4,8,4,17],[5,8,5,17],[6,8,6,17],[7,8,7,17],[8,8,8,17],[9,8,9,17],[10,8,10,17],[12,8,12,17],[13,8,13,17],[14,8,14,17],[15,8,15,17],[16,8,16,17],[22,8,22,17],[23,8,23,17],[24,8,24,17],[17,8,17,17],[18,8,18,17],[19,8,19,17],[20,8,20,17],[21,8,21,17]]}
[]
[null,"A.2 DEFINITION ET ARCHITECTURE DE L’OFFRE DE FORMATION",null,null,null,"Oui entier","OUI partiel","NON","OBSERVATIONS"]
[]
[null,"A2.1","L’offre de formation est adaptée aux spécificités de l’environnement local, scientifique et socioprofessionnel et tient compte du contexte national et international",{"$f":"SUM(VALUE(D5+D6+D7+D8+D9+D10+D11+D13+D14+D15+D16+D17+D18+D19+D20+D21+D22+D24+D25)/19)","v":0.86842105263157898}]
[null,"A2.1.1","L’offre de formation est adaptée aux spécificités locales et est conforme au choix stratégique national et international",{"$f":"SUBSTITUTE(SUBSTITUTE(E5,\"3\",0),\"2\",0.5)","v":"1"},1,null,null,null,null,null,null,null,null,null,null,null,null,null,{"$f":"VALUE(D5)","v":1}]
[null,"A2.1.2","L’offre de formation informe sur les prérequis, les parcours, les modalités de prise en compte de la validation des acquis de l’expérience (VAE) ",{"$f":"SUBSTITUTE(SUBSTITUTE(E6,\"3\",0),\"2\",0.5)","v":"1"},1,null,null,null,null,null,null,null,null,null,null,null,null,null,{"$f":"VALUE(D6)","v":1}]
[null,"A2.1.3","L’offre de formation présente un programme détaillé incluant les capacités ou compétences professionnelles visées","1",1,null,null,null,null,null,null,null,null,null,null,null,null,null,1]
[null,"A2.1.4","Les débouchés en matière de poursuite d’études et d’insertion professionnelle sont décrits","1",1,null,null,null,null,null,null,null,null,null,null,null,null,null,1]
[null,"A2.1.5","L’offre de formation est approuvée selon la procédure en vigueur dans l’institution","0,5",2,null,null,null,null,null,null,null,null,null,null,null,null,null,0.5]
[null,"A2.1.6","L'offre de formation permet l’acquisition des principaux concepts et méthodes de la spécialité et correspondent, pour le domaine considéré, aux standards reconnus sur le plan international ","1",1,null,null,null,null,null,null,null,null,null,null,null,null,null,1]
[null,"A2.1.7","L'offre de formation favorise l’articulation entre les savoirs théoriques et pratiques","1",1,null,null,null,null,null,null,null,null,null,null,null,null,null,1]
[null,"A2.2","L’offre de formation est pertinente et en cohérence avec le projet de l’institution et ses ressources"]
[null,"A2.2.1","La conformité de l’offre de formation avec le plan de développement institutionnel est établie ","1",1,null,null,null,null,null,null,null,null,null,null,null,null,null,1]
[null,"A2.2.2","L’offre de formation décrit et atteste l’adaptation des modalités pédagogiques aux objectifs de la formation ","1",1,null,null,null,null,null,null,null,null,null,null,null,null,null,1]
[null,"A2.2.3","La formation a une dimension enseignement générale ou professionnelle","1",1,null,null,null,null,null,null,null,null,null,null,null,null,null,1]
[null,"A2.2.4","La formation conduit à l’obtention d’un diplôme reconnu au plan national, voire une reconnaissance par le CAMES","1",1,null,null,null,null,null,null,null,null,null,null,null,null,null,1]
[null,"A2.2.5","La formation s’inscrit dans l’architecture LMD.","1",1,null,null,null,null,null,null,null,null,null,null,null,null,null,1]
[null,"A2.2.6","Les domaines disciplinaires concernés sont définis et organisés par niveau en fonction de la semestrialisation","1",1,null,null,null,null,null,null,null,null,null,null,null,null,null,1]
[null,"A2.2.7","Les conditions d’admission des apprenants sont définies, communiquées et accessibles à toutes les parties prenantes","1",1,null,null,null,null,null,null,null,null,null,null,null,null,null,1]
[null,"A2.2.8","L'évolution des effectifs étudiants démontrant la capacité d’attraction et de rétention du programme est analysée","0,5",2,null,null,null,null,null,null,null,null,null,null,null,null,null,0.5]
[null,"A2.2.9","Les modalités de suivi des étudiants en difficulté et efficacité de ces mesures sont établies","0,5",2,null,null,null,null,null,null,null,null,null,null,null,null,null,0.5]
[null,"A2.2.10","Des passerelles vers d’autres formations (pour une réorientation ou une poursuite d’études) sont prévues","0,5",2,null,null,null,null,null,null,null,null,null,null,null,null,null,0.5]
[null,"A2.3","L’offre de formation comporte une ouverture pluridisciplinaire."]
[null,"A2.3.1","Les disciplines non spécifiques ont été identifiées et prises en compte","0,5",2,null,null,null,null,null,null,null,null,null,null,null,null,null,0.5]
[null,"A2.3.2","Le caractère transversal des enseignements est pris en compte ","1",1,null,null,null,null,null,null,null,null,null,null,null,null,null,1]

{"sheet":"A3","index":3,"n_rows":15,"n_cols":19,"rows_kept":15,"cut":false,"hidden":false,"merged":[[1,1,1,2],[1,8,1,17],[3,8,3,17],[4,8,4,17],[5,8,5,17],[11,8,11,17],[12,8,12,17],[13,8,13,17],[14,8,14,17],[6,8,6,17],[7,8,7,17],[8,8,8,17],[9,8,9,17],[10,8,10,17]]}
[]
[null,"A.3 INSCRIPTION DE L’OFFRE DE FORMATION DANS UN CADRE NATIONAL, REGIONAL ET INTERNATIONAL",null,null,null,"Oui entier","OUI partiel","NON","OBSERVATIONS"]
[]
[null,"A3.1","L’institution participe à des réseaux nationaux, régionaux et internationaux ayant trait à la formation",{"$f":"SUM(VALUE(D5+D6+D8+D9+D11+D12+D13+D14+D15)/9)","v":0.33333333333333331}]
[null,"A3.1.1","L'institution met en place des dispositifs nationaux, régionaux et/ou internationaux d’information efficace et d’orientation",{"$f":"SUBSTITUTE(SUBSTITUTE(E5,\"3\",0),\"2\",0.5)","v":"0"},3,null,null,null,null,null,null,null,null,null,null,null,null,null,{"$f":"VALUE(D5)","v":0}]
[null,"A3.1.2","Les réseaux nationaux, régionaux et internationaux ayant pour objet l’offre de formation sont connus et opérationnels",{"$f":"SUBSTITUTE(SUBSTITUTE(E6,\"3\",0),\"2\",0.5)","v":"0"},3,null,null,null,null,null,null,null,null,null,null,null,null,null,{"$f":"VALUE(D6)","v":0}]
[null,"A3.2","L’offre de formation s’inscrit dans un cadre national et international"]
[null,"A3.2.1","Un programme d’information et de sensibilisation sur l'offre de formation au niveau national et international sont disponibles","0",3,null,null,null,null,null,null,null,null,null,null,null,null,null,0]
[null,"A3.2.2","Des étudiants d'horizons divers sont accueillis ","1",1,null,null,null,null,null,null,null,null,null,null,null,null,null,1]
[null,"A3.3","L’institution développe des partenariats et passe des conventions avec des établissements au plan national, régional et international"]
[null,"A3.3.1","L'institution a un poste permanent et fonctionnel pour les relations extérieures ","1",1,null,null,null,null,null,null,null,null,null,null,null,null,null,1]
[null,"A3.3.2","L'institution sélectionne ses partenaires","0",3,null,null,null,null,null,null,null,null,null,null,null,null,null,0]
[null,"A3.3.3","L'institution signe des conventions inter-établissements et les met en œuvre","1",1,null,null,null,null,null,null,null,null,null,null,null,null,null,1]
[null,"A3.3.4","Des échanges d’étudiants sont effectués. ","0",3,null,null,null,null,null,null,null,null,null,null,null,null,null,0]
[null,"A3.3.5","Des échanges d’enseignants sont effectués","0",3,null,null,null,null,null,null,null,null,null,null,null,null,null,0]

{"sheet":"A4","index":4,"n_rows":59,"n_cols":19,"rows_kept":59,"cut":false,"hidden":false,"merged":[[1,1,1,2],[1,8,1,17],[3,8,3,17],[4,8,4,17],[5,8,5,17],[6,8,6,17],[7,8,7,17],[8,8,8,17],[9,8,9,17],[10,8,10,17],[11,8,11,17],[12,8,12,17],[13,8,13,17],[14,8,14,17],[15,8,15,17],[16,8,16,17],[17,8,17,17],[18,8,18,17],[19,8,19,17],[20,8,20,17],[21,8,21,17],[22,8,22,17],[23,8,23,17],[24,8,24,17],[25,8,25,17],[26,8,26,17],[27,8,27,17],[28,8,28,17],[29,8,29,17],[30,8,30,17],[31,8,31,17],[32,8,32,17],[33,8,33,17],[34,8,34,17],[35,8,35,17],[36,8,36,17],[37,8,37,17],[38,8,38,17],[39,8,39,17],[40,8,40,17],[41,8,41,17],[42,8,42,17],[43,8,43,17],[44,8,44,17],[45,8,45,17],[46,8,46,17],[47,8,47,17],[48,8,48,17],[49,8,49,17],[50,8,50,17],[56,8,56,17],[57,8,57,17],[58,8,58,17],[51,8,51,17],[52,8,52,17],[53,8,53,17],[54,8,54,17],[55,8,55,17]]}
[]
[null,"A.4 - ORGANISATION PEDAGOGIQUE",null,null,null,"Oui entier","OUI partiel","NON","OBSERVATIONS"]
[]
[null,"A4.1","L’organisation pédagogique est clairement définie et conforme aux exigences du LMD",{"$f":"SUM(VALUE(D5+D6+D7+D8+D9+D10+D11+D13+D14+D15+D16+D17+D18+D19+D20+D21+D23+D24+D25+D26+D27+D29+D30+D31+D32+D33+D34+D35+D36+D37+D39+D40+D41+D42+D43+D44+D45+D47+D48+D49+D50+D51+D52+D53+D55+D56+D57+D58+D59)/48)","v":0.67708333333333337}]
[null,"A4.1.1","Des équipes pédagogiques fonctionnelles et compétentes sont mises en place",{"$f":"SUBSTITUTE(SUBSTITUTE(E5,\"3\",0),\"2\",0.5)","v":"1"},1,null,null,null,null,null,null,null,null,null,null,null,null,null,{"$f":"VALUE(D5)","v":1}]
[null,"A4.1.2","Les objectifs de la formation sont présentés en termes de savoir, savoir-faire, savoir-être",{"$f":"SUBSTITUTE(SUBSTITUTE(E6,\"3\",0),\"2\",0.5)","v":"1"},1,null,null,null,null,null,null,null,null,null,null,null,null,null,{"$f":"VALUE(D6)","v":1}]
[null,"A4.1.3","L’importance et la place des stages dans la formation ont été spécifiées, de même que les modalités de mise en stage et d'apprentissage","1",1,null,null,null,null,null,null,null,null,null,null,null,null,null,1]
[null,"A4.1.4","Les objectifs, modalités et évaluation des projets et stages sont explicités et connus des étudiants","0,5",2,null,null,null,null,null,null,null,null,null,null,null,null,null,0.5]
[null,"A4.1.5","Un bureau d’aide à l’insertion professionnelle ou structure équivalente accompagne les étudiants dans le processus de recherche de stages et dans l’élaboration de leur projet professionnel","0,5",2,null,null,null,null,null,null,null,null,null,null,null,null,null,0.5]
[null,"A4.1.6","Les stages font l’objet de conventions formalisées","1",1,null,null,null,null,null,null,null,null,null,null,null,null,null,1]
[null,"A4.1.7","Des modules de formation à la recherche sont intégrés dans l’offre de formation","0,5",2,null,null,null,null,null,null,null,null,null,null,null,null,null,0.5]
[null,"A4.2","Les Unités d’enseignement sont définies conformément aux normes du CAMES"]
[null,"A4.2.1","Les valeurs des différentes unités d’enseignement sont définies (UE majeure, mineure, optionnelle/fondamentale, méthodologie, spécialité, libre)","1",1,null,null,null,null,null,null,null,null,null,null,null,null,null,1]
[null,"A4.2.2","Les volumes horaires de chaque UE sont déterminés","1",1,null,null,null,null,null,null,null,null,null,null,null,null,null,1]
[null,"A4.2.3","La formation comprend un ensemble d’unités d’enseignement cohérent avec les objectifs définis","1",1,null,null,null,null,null,null,null,null,null,null,null,null,null,1]
[null,"A4.2.4","La formation est structurée autour d’un tronc commun formant un socle de connaissances","1",1,null,null,null,null,null,null,null,null,null,null,null,null,null,1]
[null,"A4.2.5","La formation est déclinée en spécialités ou parcours-type permettant une spécialisation progressive des étudiants","1",1,null,null,null,null,null,null,null,null,null,null,null,null,null,1]
[null,"A4.2.6","Des modules optionnels permettent aux étudiants d’adapter la formation à leur projet personnel ","0,5",2,null,null,null,null,null,null,null,null,null,null,null,null,null,0.5]
[null,"A4.2.7","La formation offre des parcours adaptés au public en formation initiale et en alternance","0,5",2,null,null,null,null,null,null,null,null,null,null,null,null,null,0.5]
[null,"A4.2.8","La formation est capable d’accueillir des étudiants ayant des contraintes particulières (situation de handicap, sportifs de haut niveau, salariés, etc.)","0",3,null,null,null,null,null,null,null,null,null,null,null,null,null,0]
[null,"A4.2.9","La formation prend en compte les enjeux liés à la formation tout au long de la vie et aux nouvelles formes d’enseignement à distance","0",3,null,null,null,null,null,null,null,null,null,null,null,null,null,0]
[null,"A4.3","L'offre de formation établit clairement l'articulation entre la formation et la recherche aux niveaux master et doctorat (laisser  à oui  pour < BAC+5 c’est-à-dire licence et BAC+2"]
[null,"A4.3.1","Il existe un processus d'approbation du choix de thèmes de recherche","1",1,null,null,null,null,null,null,null,null,null,null,null,null,null,1]
[null,"A4.3.2","L’intervention d’enseignants-chercheurs et/ou de chercheurs associés permet une bonne articulation formation-recherche","1",1,null,null,null,null,null,null,null,null,null,null,null,null,null,1]
[null,"A4.3.3","L’articulation formation-recherche est mise en avant par l’intervention d’enseignants issus de la recherche, du monde socioéconomique et professionnel","1",1,null,null,null,null,null,null,null,null,null,null,null,null,null,1]
[null,"A4.3.4","L'offre de formation prend en compte la formation par la recherche (projet ou stage en laboratoire, séminaires, etc.)","1",1,null,null,null,null,null,null,null,null,null,null,null,null,null,1]
[null,"A4.3.5","L'offre de formation prévoit un mécanisme de suivi et d'évaluation des activités de recherche","1",1,null,null,null,null,null,null,null,null,null,null,null,null,null,1]
[null,"A4.4","Les outils et innovations pédagogiques sont régulièrement évalués "]
[null,"A4.4.1","Les activités d’enseignement et interactions enseignants-enseignés favorisent le développement des apprentissages","0,5",2,null,null,null,null,null,null,null,null,null,null,null,null,null,0.5]
[null,"A4.4.2","Les outils et innovations pédagogiques permettent d’assurer la qualité de la formation","1",1,null,null,null,null,null,null,null,null,null,null,null,null,null,1]
[null,"A4.5","L’encadrement pédagogique est adéquat."]
[null,"A4.5.1","La formation est encadrée et dispensée par des enseignants qualifiés et compétents","1",1,null,null,null,null,null,null,null,null,null,null,null,null,null,1]
[null,"A4.5.2","Les supports pédagogiques et la documentation sont disponibles et fonctionnels","1",1,null,null,null,null,null,null,null,null,null,null,null,null,null,1]
[null,"A4.5.3","L’enseignement est centré sur l’étudiant-e et encourage son autonomie et sa participation active","0,5",2,null,null,null,null,null,null,null,null,null,null,null,null,null,0.5]
[null,"A4.5.4","Pour chaque UE, les modalités d’enseignement (charge de travail, méthodes et moyens pédagogiques, activités d’apprentissage, etc.) sont efficacement communiquées aux étudiant-e-s","1",1,null,null,null,null,null,null,null,null,null,null,null,null,null,1]
[null,"A4.5.5","Des opportunités de formation continue et pédagogique pour le corps enseignant et le personnel de soutien existent","0",3,null,null,null,null,null,null,null,null,null,null,null,null,null,0]
[null,"A4.5.6","Les partenariats et les collaborations contribuent à l'amélioration de la qualité ","0,5",2,null,null,null,null,null,null,null,null,null,null,null,null,null,0.5]
[null,"A4.6","L'évaluation des apprentissages est clairement définie, respectée et diffusée"]
[null,"A4.6.1","Les connaissances et les compétences acquises sont périodiquement (au moins semestriellement) évaluées","0",3,null,null,null,null,null,null,null,null,null,null,null,null,null,0]
[null,"A4.6.2","Les différents types d’évaluation prévus dans le cadre de l’offre de formation sont précisés et communiqués à toutes les parties prenantes (enseignants, plateforme, guide de l’étudiant,…)","0,5",2,null,null,null,null,null,null,null,null,null,null,null,null,null,0.5]
[null,"A4.6.3","Les critères de notation sont précisés, diffusés et systématiquement respectés","0,5",2,null,null,null,null,null,null,null,null,null,null,null,null,null,0.5]
[null,"A4.6.4","Les délibérations se déroulent conformément au calendrier établi","0,5",2,null,null,null,null,null,null,null,null,null,null,null,null,null,0.5]
[null,"A4.6.5","Les résultats des évaluations sont diffusés dans les délais prescrits","0",3,null,null,null,null,null,null,null,null,null,null,null,null,null,0]
[null,"A4.6.6","Les procédures et modalités de réclamations sont connues et diffusées","0,5",2,null,null,null,null,null,null,null,null,null,null,null,null,null,0.5]
[null,"A4.6.7","Les modalités de délivrance des diplômes sont arrêtés et diffusés à toutes les parties prenantes","0,5",2,null,null,null,null,null,null,null,null,null,null,null,null,null,0.5]
[null,"A4.7","Les enseignements font l’objet d’une évaluation régulière"]
[null,"A4.7.1","Les objectifs de cette évaluation sont définis","1",1,null,null,null,null,null,null,null,null,null,null,null,null,null,1]
[null,"A4.7.2","Les programmes de formation sont régulièrement et périodiquement évalués","0,5",2,null,null,null,null,null,null,null,null,null,null,null,null,null,0.5]
[null,"A4.7.3","Les progrès, réussites et difficultés des apprenants sont régulièrement analysés en cohérence avec les enseignements","0,5",2,null,null,null,null,null,null,null,null,null,null,null,null,null,0.5]
[null,"A4.7.4","Les curricula sont périodiquement révisés","0,5",2,null,null,null,null,null,null,null,null,null,null,null,null,null,0.5]
[null,"A4.7.5","Les employeurs sont régulièrement consultés","1",1,null,null,null,null,null,null,null,null,null,null,null,null,null,1]
[null,"A4.7.6","Les responsables des questions de docimologie sont désignés","0",3,null,null,null,null,null,null,null,null,null,null,null,null,null,0]
[null,"A4.7.7","Les contenus sont régulièrement actualisés en fonction des avancées de la discipline et de l’évolution des pratiques professionnelles","0,5",2,null,null,null,null,null,null,null,null,null,null,null,null,null,0.5]
[null,"A4.8","Les enseignements sont évalués par les étudiants"]
[null,"A4.8.1","Les objectifs de cette évaluation sont définis","0,5",2,null,null,null,null,null,null,null,null,null,null,null,null,null,0.5]
[null,"A4.8.2","Un répertoire de critères à prendre en compte dans l’évaluation est élaboré","1",1,null,null,null,null,null,null,null,null,null,null,null,null,null,1]
[null,"A4.8.3","L’évaluation des enseignements par les étudiants est effectivement réalisée","1",1,null,null,null,null,null,null,null,null,null,null,null,null,null,1]
[null,"A4.8.4","Des informations sont périodiquement collectées auprès des anciens diplômés","1",1,null,null,null,null,null,null,null,null,null,null,null,null,null,1]
[null,"A4.8.5","Les résultats des évaluations sont pris en compte par les enseignants","0,5",2,null,null,null,null,null,null,null,null,null,null,null,null,null,0.5]

{"sheet":"A5","index":5,"n_rows":7,"n_cols":19,"rows_kept":7,"cut":false,"hidden":false,"merged":[[7,8,7,17],[1,1,1,2],[1,8,1,17],[3,8,3,17],[4,8,4,17],[5,8,5,17],[6,8,6,17]]}
[]
[null,"A.5 -QUALITE DES RESULTATS ET DES EFFETS DE LA FORMATION",null,null,null,"Oui entier","OUI partiel","NON","OBSERVATIONS"]
[]
[null,"A5.1","Les résultats et effets de la formation sont évalués périodiquement",{"$f":"SUM(VALUE(D5+D6+D7)/3)","v":1}]
[null,"A5.1.1","Le taux des diplômés est mesuré",{"$f":"SUBSTITUTE(SUBSTITUTE(E5,\"3\",0),\"2\",0.5)","v":"1"},1,null,null,null,"Document disponible",null,null,null,null,null,null,null,null,null,{"$f":"VALUE(D5)","v":1}]
[null,"A5.1.2","Une enquête de satisfaction est régulièrement menée auprès des étudiants, des diplômés, des enseignants ainsi que des employeurs",{"$f":"SUBSTITUTE(SUBSTITUTE(E6,\"3\",0),\"2\",0.5)","v":"1"},1,null,null,null,"Document indisponible",null,null,null,null,null,null,null,null,null,{"$f":"VALUE(D6)","v":1}]
[null,"A5.1.3","Le taux d'insertion professionnelle est mesuré",{"$f":"SUBSTITUTE(SUBSTITUTE(E7,\"3\",0),\"2\",0.5)","v":"1"},1,null,null,null,"élements de preuve absents",null,null,null,null,null,null,null,null,null,1]

{"sheet":"Infra","index":6,"n_rows":25,"n_cols":19,"rows_kept":25,"cut":false,"hidden":false,"merged":[[6,8,6,17],[1,1,1,2],[1,8,1,17],[3,8,3,17],[4,8,4,17],[5,8,5,17],[7,8,7,17],[8,8,8,17],[9,8,9,17],[10,8,10,17],[11,8,11,17],[12,8,12,17],[13,8,13,17],[14,8,14,17],[15,8,15,17],[16,8,16,17],[22,8,22,17],[23,8,23,17],[24,8,24,17],[17,8,17,17],[18,8,18,17],[19,8,19,17],[20,8,20,17],[21,8,21,17]]}
[]
[null,"A6. INFRASTRUCTURES",null,null,null,"Oui entier","OUI partiel","NON","OBSERVATIONS"]
[]
[null,"A6.1","les infrastructures immobilières",{"$f":"SUM(VALUE(D5+D6+D7+D8+D9+D10+D11+D12+D13+D14+D15+D16+D17+D18+D20+D21+D22+D23+D24+D25)/20)","v":0.95}]
[null,"A6.1.1","un bâtiment administratif affecté au Conseil de direction, au Rectorat et à leurs services d’appui",{"$f":"SUBSTITUTE(SUBSTITUTE(E5,\"3\",0),\"2\",0.5)","v":"0,5"},2,null,null,null,null,null,null,null,null,null,null,null,null,null,{"$f":"VALUE(D5)","v":0.5}]
[null,"A6.1.2","des bureaux pour les Responsables des structures composant l’institution ainsi que les Responsables de filière ; ",{"$f":"SUBSTITUTE(SUBSTITUTE(E6,\"3\",0),\"2\",0.5)","v":"1"},1,null,null,null,null,null,null,null,null,null,null,null,null,null,{"$f":"VALUE(D6)","v":1}]
[null,"A6.1.3","des locaux pour la tenue des Conseils ou assemblées et pour l’organisation des cérémonies universitaires",{"$f":"SUBSTITUTE(SUBSTITUTE(E7,\"3\",0),\"2\",0.5)","v":"1"},1,null,null,null,null,null,null,null,null,null,null,null,null,null,1]
[null,"A6.1.4","un amphithéâtre d’au moins 200 places assises  ( uniquement pour les universités par défaut laisser oui)",{"$f":"SUBSTITUTE(SUBSTITUTE(E8,\"3\",0),\"2\",0.5)","v":"1"},1,null,null,null,null,null,null,null,null,null,null,null,null,null,1]
[null,"A6.1.5","au moins une salle de cours et une salle de travaux dirigés pour chaque filière de formation ",{"$f":"SUBSTITUTE(SUBSTITUTE(E9,\"3\",0),\"2\",0.5)","v":"1"},1,null,null,null,null,null,null,null,null,null,null,null,null,null,1]
[null,"A6.1.6","une bibliothèque avec une salle de lecture d’au moins 50 places assises","1",1,null,null,null,null,null,null,null,null,null,null,null,null,null,1]
[null,"A6.1.7","au moins une salle informatique avec connexion Internet","1",1,null,null,null,null,null,null,null,null,null,null,null,null,null,1]
[null,"A6.1.8","un centre médico-social comportant une salle de consultation, un bureau de médecins,une salle de soins infirmiers, une salle d’observation de 4 lits au moins (université par défaut laisser oui)","1",1,null,null,null,null,null,null,null,null,null,null,null,null,null,1]
[null,"A6.1.9","des bureaux pour les enseignants permanents","1",1,null,null,null,null,null,null,null,null,null,null,null,null,null,1]
[null,"A6.1.10","une salle des professeurs avec connexion Internet","1",1,null,null,null,null,null,null,null,null,null,null,null,null,null,1]
[null,"A6.1.11","une salle destinée aux organisations estudiantines ","0,5",2,null,null,null,null,null,null,null,null,null,null,null,null,null,0.5]
[null,"A6.1.12","un espace affecté aux activités sportives et aux loisirs","1",1,null,null,null,null,null,null,null,null,null,null,null,null,null,1]
[null,"A6.1.13","des points d’eau potable","1",1,null,null,null,null,null,null,null,null,null,null,null,null,null,1]
[null,"A6.1.14","des toilettes clairement identifiées garçons/filles","1",1,null,null,null,null,null,null,null,null,null,null,null,null,null,1]
[null,"A6.2","les infrastructures (Uniquement pours les institutions en Médecine, Phamarcie, ...) laisser sur oui par défaut pour les autres types d'institution.",null,null,null,null,null,null,null,null,null,null,null,null,null,null,null,0]
[null,"A6.2.1","des salles de travaux pratiques spécifiques aux différentes matières (Physique, chimie, microbiologie, anatomie, physiologie, cytologie et cytopathologie...)","1",1,null,null,null,null,null,null,null,null,null,null,null,null,null,1]
[null,"A6.2.2","des Laboratoires de recherche","1",1,null,null,null,null,null,null,null,null,null,null,null,null,null,1]
[null,"A6.2.3","des sites de stage professionnel ou à défaut, des conventions de partenariat avec des structures publiques ou privées pouvant accueillir les étudiants stagiaire","1",1,null,null,null,null,null,null,null,null,null,null,null,null,null,1]
[null,"A6.2.4","L’amphithéâtre, les salles de cours et de TD doivent être équipés de tables bancs , de tableaux muraux et éventuellement de vidéo projecteurs. ","1",1,null,null,null,null,null,null,null,null,null,null,null,null,null,1]
[null,"A6.2.5","Les salles de TP doivent être équipées de paillasses fonctionnelles avec arrivée d’eau et de gaz ainsi que des équipements techniques conformes à la matière enseignée.",{"$f":"SUBSTITUTE(SUBSTITUTE(E24,\"3\",0),\"2\",0.5)","v":"1"},1,null,null,null,null,null,null,null,null,null,null,null,null,null,1]
[null,"A6.2.6","Les bibliothèques, qui doivent nécessairement être abonnées à des bases de données bibliographiques, doivent être climatisées et équipées de tables de lecture avec chaises, de meubles de rangement des documents, d’ordinateurs avec connexion Internet.",{"$f":"SUBSTITUTE(SUBSTITUTE(E25,\"3\",0),\"2\",0.5)","v":"1"},1,null,null,null,null,null,null,null,null,null,null,null,null,null,1]

{"sheet":"Recap","index":7,"n_rows":9,"n_cols":6,"rows_kept":9,"cut":false,"hidden":false,"merged":[[0,1,0,16]]}
[null,"Récapitulatif de l'évaluation des critères"]
[]
[null,null,"CHAMPS","Nombre de critères à Oui entier","Nombre de critères à Oui partielle et non","Recommandations (mentionné le code de la référence et des critères non pleinement remplies, ex: A3.1.1)"]
[null,"A.1",{"$f":"'A1'!B2","v":"A.1 -FONDEMENT/JUSTIFICATION DE L’OFFRE DE FORMATION"},{"$f":"COUNTIF('A1'!S5:S12,1)","v":4},{"$f":"COUNTIFS('A1'!S5:S12, 0) + COUNTIFS('A1'!S5:S12, 0.5)","v":3},{"$f":"IFERROR(_xlfn.TEXTJOIN(\"; \",TRUE,_xlfn._xlws.FILTER('A1'!B5:B12,(('A1'!S5:S12=0)+('A1'!S5:S12=0.5))*('A1'!S5:S12<>\"\"))),\"Néant\")","v":"A1.1.1; A1.1.2; A1.1.3"}]
[null,"A.2",{"$f":"'A2'!B2","v":"A.2 DEFINITION ET ARCHITECTURE DE L’OFFRE DE FORMATION"},{"$f":"COUNTIF('A2'!S5:S25,1)","v":14},{"$f":"COUNTIFS('A2'!S5:S25, 0) + COUNTIFS('A2'!S5:S25, 0.5)","v":5},{"$f":"IFERROR(_xlfn.TEXTJOIN(\"; \",TRUE,_xlfn._xlws.FILTER('A2'!B5:B25,(('A2'!S5:S25=0)+('A2'!S5:S25=0.5))*('A2'!S5:S25<>\"\"))), \"Néant\")","v":"A2.1.5; A2.2.8; A2.2.9; A2.2.10; A2.3.1"}]
[null,"A.3",{"$f":"'A3'!B2","v":"A.3 INSCRIPTION DE L’OFFRE DE FORMATION DANS UN CADRE NATIONAL, REGIONAL ET INTERNATIONAL"},{"$f":"COUNTIF('A3'!S5:S15,1)","v":3},{"$f":"COUNTIFS('A3'!S5:S15, 0) + COUNTIFS('A3'!S5:S15, 0.5)","v":6},{"$f":"IFERROR(_xlfn.TEXTJOIN(\"; \",TRUE,_xlfn._xlws.FILTER('A3'!B5:B15,(('A3'!S5:S15=0)+('A3'!S5:S15=0.5))*('A3'!S5:S15<>\"\"))), \"Néant\")","v":"A3.1.1; A3.1.2; A3.2.1; A3.3.2; A3.3.4; A3.3.5"}]
[null,"A.4",{"$f":"'A4'!B2","v":"A.4 - ORGANISATION PEDAGOGIQUE"},{"$f":"COUNTIF('A4'!S5:S59,1)","v":23},{"$f":"COUNTIFS('A4'!S5:S59, 0) + COUNTIFS('A4'!S5:S59, 0.5)","v":25},{"$f":"IFERROR(_xlfn.TEXTJOIN(\"; \",TRUE,_xlfn._xlws.FILTER('A4'!B5:B59,(('A4'!S5:S59=0)+('A4'!S5:S59=0.5))*('A4'!S5:S59<>\"\"))), \"Néant\")","v":"A4.1.4; A4.1.5; A4.1.7; A4.2.6; A4.2.7; A4.2.8; A4.2.9; A4.4.1; A4.5.3; A4.5.5; A4.5.6; A4.6.1; A4.6.2; A4.6.3; A4.6.4; A4.6.5; A4.6.6; A4.6.7; A4.7.2; A4.7.3; A4.7.4; A4.7.6; A4.7.7; A4.8.1; A4.8.5"}]
[null,"A.5",{"$f":"'A5'!B2","v":"A.5 -QUALITE DES RESULTATS ET DES EFFETS DE LA FORMATION"},{"$f":"COUNTIF('A5'!S5:S7,1)","v":3},{"$f":"COUNTIF('A5'!S5:S7,\"<>1\")","v":0},{"$f":"IFERROR(_xlfn.TEXTJOIN(\"; \",TRUE,_xlfn._xlws.FILTER('A5'!B5:B7,(('A5'!S5:S7=0)+('A5'!S5:S7=0.5)))), \"Néant\")","v":"Néant"}]
[null,"A.6",{"$f":"Infra!B2","v":"A6. INFRASTRUCTURES"},{"$f":"COUNTIF(Infra!S5:S25,1)","v":18},{"$f":"COUNTIF(Infra!S5:S25,\"<>1\")","v":3},{"$f":"IFERROR(_xlfn.TEXTJOIN(\"; \",TRUE,_xlfn._xlws.FILTER(Infra!B5:B59,((Infra!S5:S59=0)+(Infra!S5:S59=0.5))*(Infra!S5:S59<>\"\"))),\"Néant\")","v":"A6.1.1; A6.1.11; A6.2"}]

{"sheet":"Résultats","index":8,"n_rows":144,"n_cols":7,"rows_kept":144,"cut":false,"hidden":false,"merged":[[138,1,138,4],[139,1,139,4],[140,1,140,4],[141,1,141,4],[142,1,142,4],[143,1,143,4],[122,1,122,3],[117,1,117,2],[129,1,129,4],[130,1,130,4],[131,1,131,4],[132,1,132,4],[133,1,133,4],[134,1,134,4],[135,1,135,4],[136,1,136,4],[137,1,137,4],[121,0,121,6],[123,1,123,4],[124,1,124,4],[125,1,125,4],[126,1,126,4],[127,1,127,4],[128,1,128,4],[14,1,14,4],[15,1,15,4],[18,1,18,4],[19,1,19,4],[17,1,17,3],[16,1,16,4],[0,0,0,15],[11,0,11,15],[13,1,13,4],[30,1,30,4],[31,1,31,4],[32,1,32,4],[24,1,24,4],[25,1,25,4],[26,1,26,4],[27,1,27,4],[20,1,20,4],[21,1,21,4],[23,0,23,15],[28,1,28,4],[29,1,29,4],[66,1,66,4],[33,1,33,4],[34,1,34,4],[35,1,35,4],[36,1,36,4],[37,1,37,4],[46,0,46,15],[49,1,49,4],[51,1,51,4],[52,1,52,4],[44,1,44,4],[45,1,45,4],[43,1,43,4],[47,1,47,4],[48,1,48,4],[98,1,98,4],[76,1,76,4],[77,1,77,4],[79,1,79,4],[80,1,80,4],[81,1,81,4],[82,1,82,4],[38,1,38,4],[39,1,39,4],[40,1,40,4],[41,1,41,4],[42,1,42,4],[54,1,54,4],[55,1,55,4],[59,0,59,15],[53,1,53,4],[50,1,50,4],[60,1,60,4],[68,1,68,4],[61,1,61,4],[62,1,62,4],[63,1,63,4],[64,1,64,4],[65,1,65,4],[92,1,92,4],[67,1,67,4],[56,1,56,4],[57,1,57,4],[58,1,58,4],[120,1,120,4],[111,1,111,4],[112,1,112,4],[113,1,113,4],[114,1,114,4],[115,1,115,4],[69,1,69,4],[70,1,70,4],[71,1,71,4],[72,1,72,4],[73,1,73,4],[110,1,110,4],[116,0,116,15],[118,1,118,4],[119,1,119,4],[93,1,93,4],[95,1,95,4],[96,1,96,4],[97,1,97,4],[105,1,105,4],[74,1,74,4],[75,1,75,4],[78,1,78,4],[87,1,87,4],[106,1,106,4],[107,1,107,4],[108,1,108,4],[109,1,109,4],[103,1,103,4],[104,1,104,4],[94,1,94,4],[84,1,84,4],[102,1,102,4],[99,1,99,4],[100,1,100,4],[101,1,101,4],[83,1,83,4],[88,1,88,4],[85,1,85,4],[86,1,86,4],[89,1,89,4],[90,1,90,4],[91,1,91,4]]}
["Résumé général des Notes et zones d'Action"]
[]
[null,"CHAMPS","REF","CRIT","PREUVE","SCORE","ACTION"]
["A.1",{"$f":"'A1'!B2","v":"A.1 -FONDEMENT/JUSTIFICATION DE L’OFFRE DE FORMATION"},2,7,7,{"$f":"'A1'!D4","v":0.7142857142857143},{"$f":"IF(F4 >=0.66, \"OK\", IF(F4 >=0.33, \"Action Néccessaire\", IF(F4 <=0.32, \"Action Urgente\")))","v":"OK"}]
["A.2",{"$f":"'A2'!B2","v":"A.2 DEFINITION ET ARCHITECTURE DE L’OFFRE DE FORMATION"},3,19,27,{"$f":"'A2'!D4","v":0.86842105263157898},"OK"]
["A.3",{"$f":"'A3'!B2","v":"A.3 INSCRIPTION DE L’OFFRE DE FORMATION DANS UN CADRE NATIONAL, REGIONAL ET INTERNATIONAL"},3,9,10,{"$f":"'A3'!D4","v":0.33333333333333331},"Action Néccessaire"]
["A.4",{"$f":"'A4'!B2","v":"A.4 - ORGANISATION PEDAGOGIQUE"},8,44,51,{"$f":"'A4'!D4","v":0.67708333333333337},"OK"]
["A.5",{"$f":"'A5'!B2","v":"A.5 -QUALITE DES RESULTATS ET DES EFFETS DE LA FORMATION"},1,3,4,{"$f":"'A5'!D4","v":1},"OK"]
["A.6",{"$f":"Infra!B2","v":"A6. INFRASTRUCTURES"},2,20,20,{"$f":"Infra!D4","v":0.95},"OK"]
[null,"MOYENNE",null,null,null,{"$f":"+(F4+F5+F6+F7+F8+F9)/6","v":0.75718723893065987},"OK"]
[]
["Résumé détaillé des Notes et zones d'Action"]
[]
["A1.1","L’offre de formation répond à une demande de formation",null,null,null,"SCORE","ACTION"]
[1,"L'ensemble des métiers du bassin pour lesquels l'on forme est déterminé",null,null,null,{"$f":"'A1'!D5*1","v":0.5},{"$f":"IF(F15 >=0.5, \"OK\", IF(F15 >=0.3, \"Action Néccessaire\", IF(F15<=0.3, \"Action Urgente\")))","v":"OK"}]
[2,"La demande d'emplois estimée de la zone retenue est connue",null,null,null,{"$f":"'A1'!D6*1","v":0},{"$f":"IF(F16 =1, \"OK\", IF(F16 =0.5, \"Action Néccessaire\", IF(F16 =0, \"Action Urgente\")))","v":"Action Urgente"}]
[3,"La formation offre des perspectives pour de nouveaux métiers",null,null,null,{"$f":"'A1'!D7*1","v":0.5},"Action Néccessaire"]
["A1.2","Des liens sont établis avec les milieux socioprofessionnels de la zone "]
[1,"Une prospection auprès des milieux socioprofessionnels a été réalisée",null,null,null,{"$f":"'A1'!D9*1","v":1},"OK"]
[2,"Les attentes des milieux socioprofessionnels de la zone sont identifiées",null,null,null,{"$f":"'A1'!D10*1","v":1},"OK"]
[3,"Un cadre de coopération avec les opérateurs économiques a été adopté",null,null,null,{"$f":"'A1'!D11*1","v":1},"OK"]
[4,"Les milieux socioprofessionnels sont impliqués dans la conception de l’offre de formation",null,null,null,{"$f":"'A1'!D12*1","v":1},{"$f":"IF(F22 =1, \"OK\", IF(F22 =0.5, \"Action Néccessaire\", IF(F22 =0, \"Action Urgente\")))","v":"OK"}]
[]
[]
["A2.1","L’offre de formation est adaptée aux spécificités de l’environnement local, scientifique et socioprofessionnel et tient compte du contexte national et international",null,null,null,"SCORE","ACTION"]
[1,"L’offre de formation est adaptée aux spécificités locales et est conforme au choix stratégique national et international",null,null,null,{"$f":"'A2'!D5*1","v":1},{"$f":"IF(F26 >=0.6, \"OK\", IF(F26 >=0.3, \"Action Néccessaire\", IF(F26<=0.3, \"Action Urgente\")))","v":"OK"}]
[2,"L’offre de formation informe sur les prérequis, les parcours, les modalités de prise en compte de la validation des acquis de l’expérience (VAE) ",null,null,null,{"$f":"'A2'!D6*1","v":1},{"$f":"IF(F27 >=0.6, \"OK\", IF(F27 >=0.3, \"Action Néccessaire\", IF(F27<=0.3, \"Action Urgente\")))","v":"OK"}]
[3,"L’offre de formation présente un programme détaillé incluant les capacités ou compétences professionnelles visées",null,null,null,{"$f":"'A2'!D7*1","v":1},{"$f":"IF(F28 >=0.6, \"OK\", IF(F28 >=0.3, \"Action Néccessaire\", IF(F28<=0.3, \"Action Urgente\")))","v":"OK"}]
[4,"Les débouchés en matière de poursuite d’études et d’insertion professionnelle sont décrits",null,null,null,{"$f":"'A2'!D8*1","v":1},{"$f":"IF(F29 >=0.6, \"OK\", IF(F29 >=0.3, \"Action Néccessaire\", IF(F29<=0.3, \"Action Urgente\")))","v":"OK"}]
[5,"L’offre de formation est approuvée selon la procédure en vigueur dans l’institution",null,null,null,{"$f":"'A2'!D9*1","v":0.5},{"$f":"IF(F30 >=0.6, \"OK\", IF(F30 >=0.3, \"Action Néccessaire\", IF(F30<=0.3, \"Action Urgente\")))","v":"Action Néccessaire"}]
[6,"L'offre de formation permet l’acquisition des principaux concepts et méthodes de la spécialité et correspondent, pour le domaine considéré, aux standards reconnus sur le plan international ",null,null,null,{"$f":"'A2'!D10*1","v":1},"OK"]
[7,"L'offre de formation favorise l’articulation entre les savoirs théoriques et pratiques",null,null,null,{"$f":"'A2'!D11*1","v":1},"OK"]
["A2.2","L’offre de formation est pertinente et en cohérence avec le projet de l’institution et ses ressources"]
[1,"La conformité de l’offre de formation avec le plan de développement institutionnel est établie ",null,null,null,{"$f":"'A2'!D13*1","v":1},"OK"]
[2,"L’offre de formation décrit et atteste l’adaptation des modalités pédagogiques aux objectifs de la formation ",null,null,null,{"$f":"'A2'!D14*1","v":1},"OK"]
[3,"La formation a une dimension enseignement générale ou professionnelle",null,null,null,{"$f":"'A2'!D15*1","v":1},"OK"]
[4,"La formation conduit à l’obtention d’un diplôme reconnu au plan national, voire une reconnaissance par le CAMES",null,null,null,{"$f":"'A2'!D16*1","v":1},"OK"]
[5,"La formation s’inscrit dans l’architecture LMD.",null,null,null,{"$f":"'A2'!D17*1","v":1},"OK"]
[6,"Les domaines disciplinaires concernés sont définis et organisés par niveau en fonction de la semestrialisation",null,null,null,{"$f":"'A2'!D18*1","v":1},"OK"]
[7,"Les conditions d’admission des apprenants sont définies, communiquées et accessibles à toutes les parties prenantes",null,null,null,{"$f":"'A2'!D19*1","v":1},"OK"]
[8,"L'évolution des effectifs étudiants démontrant la capacité d’attraction et de rétention du programme est analysée",null,null,null,{"$f":"'A2'!D20*1","v":0.5},"Action Néccessaire"]
[9,"Les modalités de suivi des étudiants en difficulté et efficacité de ces mesures sont établies",null,null,null,{"$f":"'A2'!D21*1","v":0.5},"Action Néccessaire"]
[10,"Des passerelles vers d’autres formations (pour une réorientation ou une poursuite d’études) sont prévues",null,null,null,{"$f":"'A2'!D22*1","v":0.5},"Action Néccessaire"]
["A2.3","L’offre de formation comporte une ouverture pluridisciplinaire."]
[1,"Les disciplines non spécifiques ont été identifiées et prises en compte",null,null,null,{"$f":"'A2'!D24*1","v":0.5},"Action Néccessaire"]
[2,"Le caractère transversal des enseignements est pris en compte ",null,null,null,{"$f":"'A2'!D25*1","v":1},"OK"]
[]
["A3.1","L’institution participe à des réseaux nationaux, régionaux et internationaux ayant trait à la formation",null,null,null,"SCORE","ACTION"]
[1,"L'institution met en place des dispositifs nationaux, régionaux et/ou internationaux d’information efficace et d’orientation",null,null,null,{"$f":"'A3'!D5*1","v":0},{"$f":"IF(F49 >=0.6, \"OK\", IF(F49 >=0.3, \"Action Néccessaire\", IF(F49<=0.3, \"Action Urgente\")))","v":"Action Urgente"}]
[2,"Les réseaux nationaux, régionaux et internationaux ayant pour objet l’offre de formation sont connus et opérationnels",null,null,null,{"$f":"'A3'!D6*1","v":0},{"$f":"IF(F50 >=0.6, \"OK\", IF(F50 >=0.3, \"Action Néccessaire\", IF(F50<=0.3, \"Action Urgente\")))","v":"Action Urgente"}]
["A3.2","L’offre de formation s’inscrit dans un cadre national et international"]
[1,"Un programme d’information et de sensibilisation sur l'offre de formation au niveau national et international sont disponibles",null,null,null,{"$f":"'A3'!D8*1","v":0},{"$f":"IF(F52 >=0.6, \"OK\", IF(F52 >=0.3, \"Action Néccessaire\", IF(F52<=0.3, \"Action Urgente\")))","v":"Action Urgente"}]
[2,"Des étudiants d'horizons divers sont accueillis ",null,null,null,{"$f":"'A3'!D9*1","v":1},{"$f":"IF(F53 >=0.6, \"OK\", IF(F53 >=0.3, \"Action Néccessaire\", IF(F53<=0.3, \"Action Urgente\")))","v":"OK"}]
["A3.3","L’institution développe des partenariats et passe des conventions avec des établissements au plan national, régional et international"]
[1,"L'institution a un poste permanent et fonctionnel pour les relations extérieures ",null,null,null,{"$f":"'A3'!D11*1","v":1},{"$f":"IF(F55 >=0.6, \"OK\", IF(F55 >=0.3, \"Action Néccessaire\", IF(F55<=0.3, \"Action Urgente\")))","v":"OK"}]
[2,"L'institution sélectionne ses partenaires",null,null,null,{"$f":"'A3'!D12*1","v":0},{"$f":"IF(F56 >=0.6, \"OK\", IF(F56 >=0.3, \"Action Néccessaire\", IF(F56<=0.3, \"Action Urgente\")))","v":"Action Urgente"}]
[3,"L'institution signe des conventions inter-établissements et les met en œuvre",null,null,null,{"$f":"'A3'!D13*1","v":1},{"$f":"IF(F57 >=0.6, \"OK\", IF(F57 >=0.3, \"Action Néccessaire\", IF(F57<=0.3, \"Action Urgente\")))","v":"OK"}]
[4,"Des échanges d’étudiants sont effectués. ",null,null,null,{"$f":"'A3'!D14*1","v":0},{"$f":"IF(F58 >=0.6, \"OK\", IF(F58 >=0.3, \"Action Néccessaire\", IF(F58<=0.3, \"Action Urgente\")))","v":"Action Urgente"}]
[5,"Des échanges d’enseignants sont effectués",null,null,null,{"$f":"'A3'!D15*1","v":0},{"$f":"IF(F59 >=0.6, \"OK\", IF(F59 >=0.3, \"Action Néccessaire\", IF(F59<=0.3, \"Action Urgente\")))","v":"Action Urgente"}]
[]
["A4.1","L’organisation pédagogique est clairement définie et conforme aux exigences du LMD",null,null,null,"SCORE","ACTION"]
[1,"Des équipes pédagogiques fonctionnelles et compétentes sont mises en place",null,null,null,{"$f":"'A4'!D5*1","v":1},{"$f":"IF(F62 >=0.6, \"OK\", IF(F62 >=0.3, \"Action Néccessaire\", IF(F62<=0.3, \"Action Urgente\")))","v":"OK"}]
[2,"Les objectifs de la formation sont présentés en termes de savoir, savoir-faire, savoir-être",null,null,null,{"$f":"'A4'!D6*1","v":1},{"$f":"IF(F63 >=0.6, \"OK\", IF(F63 >=0.3, \"Action Néccessaire\", IF(F63<=0.3, \"Action Urgente\")))","v":"OK"}]
[3,"L’importance et la place des stages dans la formation ont été spécifiées, de même que les modalités de mise en stage et d'apprentissage",null,null,null,{"$f":"'A4'!D7*1","v":1},"OK"]
[4,"Les objectifs, modalités et évaluation des projets et stages sont explicités et connus des étudiants",null,null,null,{"$f":"'A4'!D8*1","v":0.5},"Action Néccessaire"]
[5,"Un bureau d’aide à l’insertion professionnelle ou structure équivalente accompagne les étudiants dans le processus de recherche de stages et dans l’élaboration de leur projet professionnel",null,null,null,{"$f":"'A4'!D9*1","v":0.5},"Action Néccessaire"]
[6,"Les stages font l’objet de conventions formalisées",null,null,null,{"$f":"'A4'!D10*1","v":1},"OK"]
[7,"Des modules de formation à la recherche sont intégrés dans l’offre de formation",null,null,null,{"$f":"'A4'!D11*1","v":0.5},"Action Néccessaire"]
["A4.2","Les Unités d’enseignement sont définies conformément aux normes du CAMES"]
[1,"Les valeurs des différentes unités d’enseignement sont définies (UE majeure, mineure, optionnelle/fondamentale, méthodologie, spécialité, libre)",null,null,null,{"$f":"'A4'!D13*1","v":1},{"$f":"IF(F70 >=0.6, \"OK\", IF(F70 >=0.3, \"Action Néccessaire\", IF(F70<=0.3, \"Action Urgente\")))","v":"OK"}]
[2,"Les volumes horaires de chaque UE sont déterminés",null,null,null,{"$f":"'A4'!D14*1","v":1},{"$f":"IF(F71 >=0.6, \"OK\", IF(F71 >=0.3, \"Action Néccessaire\", IF(F71<=0.3, \"Action Urgente\")))","v":"OK"}]
[3,"La formation comprend un ensemble d’unités d’enseignement cohérent avec les objectifs définis",null,null,null,{"$f":"'A4'!D15*1","v":1},"OK"]
[4,"La formation est structurée autour d’un tronc commun formant un socle de connaissances",null,null,null,{"$f":"'A4'!D16*1","v":1},"OK"]
[5,"La formation est déclinée en spécialités ou parcours-type permettant une spécialisation progressive des étudiants",null,null,null,{"$f":"'A4'!D17*1","v":1},"OK"]
[6,"Des modules optionnels permettent aux étudiants d’adapter la formation à leur projet personnel ",null,null,null,{"$f":"'A4'!D18*1","v":0.5},"Action Néccessaire"]
[7,"La formation offre des parcours adaptés au public en formation initiale et en alternance",null,null,null,{"$f":"'A4'!D19*1","v":0.5},"Action Néccessaire"]
[8,"La formation est capable d’accueillir des étudiants ayant des contraintes particulières (situation de handicap, sportifs de haut niveau, salariés, etc.)",null,null,null,{"$f":"'A4'!D20*1","v":0},"Action Urgente"]
[9,"La formation prend en compte les enjeux liés à la formation tout au long de la vie et aux nouvelles formes d’enseignement à distance",null,null,null,{"$f":"'A4'!D21*1","v":0},"Action Urgente"]
["A4.3","L'offre de formation établit clairement l'articulation entre la formation et la recherche aux niveaux master et doctorat"]
[1,"Il existe un processus d'approbation du choix de thèmes de recherche",null,null,null,{"$f":"'A4'!D23*1","v":1},{"$f":"IF(F80 >=0.6, \"OK\", IF(F80 >=0.3, \"Action Néccessaire\", IF(F80<=0.3, \"Action Urgente\")))","v":"OK"}]
[2,"L’intervention d’enseignants-chercheurs et/ou de chercheurs associés permet une bonne articulation formation-recherche",null,null,null,{"$f":"'A4'!D24*1","v":1},{"$f":"IF(F81 >=0.6, \"OK\", IF(F81 >=0.3, \"Action Néccessaire\", IF(F81<=0.3, \"Action Urgente\")))","v":"OK"}]
[3,"L’articulation formation-recherche est mise en avant par l’intervention d’enseignants issus de la recherche, du monde socioéconomique et professionnel",null,null,null,{"$f":"'A4'!D25*1","v":1},{"$f":"IF(F82 >=0.6, \"OK\", IF(F82 >=0.3, \"Action Néccessaire\", IF(F82<=0.3, \"Action Urgente\")))","v":"OK"}]
[4,"L'offre de formation prend en compte la formation par la recherche (projet ou stage en laboratoire, séminaires, etc.)",null,null,null,{"$f":"'A4'!D26*1","v":1},{"$f":"IF(F83 >=0.6, \"OK\", IF(F83 >=0.3, \"Action Néccessaire\", IF(F83<=0.3, \"Action Urgente\")))","v":"OK"}]
[5,"L'offre de formation prévoit un mécanisme de suivi et d'évaluation des activités de recherche",null,null,null,{"$f":"'A4'!D27*1","v":1},{"$f":"IF(F84 >=0.6, \"OK\", IF(F84 >=0.3, \"Action Néccessaire\", IF(F84<=0.3, \"Action Urgente\")))","v":"OK"}]
["A4.4","Les outils et innovations pédagogiques sont régulièrement évalués "]
[1,"Les activités d’enseignement et interactions enseignants-enseignés favorisent le développement des apprentissages",null,null,null,{"$f":"'A4'!D29*1","v":0.5},{"$f":"IF(F86 >=0.6, \"OK\", IF(F86 >=0.3, \"Action Néccessaire\", IF(F86<=0.3, \"Action Urgente\")))","v":"Action Néccessaire"}]
[2,"Les outils et innovations pédagogiques permettent d’assurer la qualité de la formation",null,null,null,{"$f":"'A4'!D30*1","v":1},{"$f":"IF(F87 >=0.6, \"OK\", IF(F87 >=0.3, \"Action Néccessaire\", IF(F87<=0.3, \"Action Urgente\")))","v":"OK"}]
["A4.5","L’encadrement pédagogique est adéquat."]
[1,"La formation est encadrée et dispensée par des enseignants qualifiés et compétents",null,null,null,{"$f":"'A4'!D32*1","v":1},{"$f":"IF(F89 >=0.6, \"OK\", IF(F89 >=0.3, \"Action Néccessaire\", IF(F89<=0.3, \"Action Urgente\")))","v":"OK"}]
[2,"Les supports pédagogiques et la documentation sont disponibles et fonctionnels",null,null,null,{"$f":"'A4'!D33*1","v":1},"OK"]
[3,"L’enseignement est centré sur l’étudiant-e et encourage son autonomie et sa participation active",null,null,null,{"$f":"'A4'!D34*1","v":0.5},"Action Néccessaire"]
[4,"Pour chaque UE, les modalités d’enseignement (charge de travail, méthodes et moyens pédagogiques, activités d’apprentissage, etc.) sont efficacement communiquées aux étudiant-e-s",null,null,null,{"$f":"'A4'!D35*1","v":1},"OK"]
[5,"Des opportunités de formation continue et pédagogique pour le corps enseignant et le personnel de soutien existent",null,null,null,{"$f":"'A4'!D36*1","v":0},"Action Urgente"]
[6,"Les partenariats et les collaborations contribuent à l'amélioration de la qualité ",null,null,null,{"$f":"'A4'!D37*1","v":0.5},"Action Néccessaire"]
["A4.6","L'évaluation des apprentissages est clairement définie, respectée et diffusée"]
[1,"Les connaissances et les compétences acquises sont périodiquement (au moins semestriellement) évaluées",null,null,null,{"$f":"'A4'!D39*1","v":0},{"$f":"IF(F96 >=0.6, \"OK\", IF(F96 >=0.3, \"Action Néccessaire\", IF(F96<=0.3, \"Action Urgente\")))","v":"Action Urgente"}]
[2,"Les différents types d’évaluation prévus dans le cadre de l’offre de formation sont précisés et communiqués à toutes les parties prenantes (enseignants, plateforme, guide de l’étudiant,…)",null,null,null,{"$f":"'A4'!D40*1","v":0.5},{"$f":"IF(F97 >=0.6, \"OK\", IF(F97 >=0.3, \"Action Néccessaire\", IF(F97<=0.3, \"Action Urgente\")))","v":"Action Néccessaire"}]
[3,"Les critères de notation sont précisés, diffusés et systématiquement respectés",null,null,null,{"$f":"'A4'!D41*1","v":0.5},"Action Néccessaire"]
[4,"Les délibérations se déroulent conformément au calendrier établi",null,null,null,{"$f":"'A4'!D42*1","v":0.5},"Action Néccessaire"]
[5,"Les résultats des évaluations sont diffusés dans les délais prescrits",null,null,null,{"$f":"'A4'!D43*1","v":0},"Action Urgente"]
[6,"Les procédures et modalités de réclamations sont connues et diffusées",null,null,null,{"$f":"'A4'!D44*1","v":0.5},"Action Néccessaire"]
[7,"Les modalités de délivrance des diplômes sont arrêtés et diffusés à toutes les parties prenantes",null,null,null,{"$f":"'A4'!D45*1","v":0.5},"Action Néccessaire"]
["A4.7","Les enseignements font l’objet d’une évaluation régulière"]
[1,"Les objectifs de cette évaluation sont définis",null,null,null,{"$f":"'A4'!D47*1","v":1},{"$f":"IF(F104 >=0.6, \"OK\", IF(F104 >=0.3, \"Action Néccessaire\", IF(F104<=0.3, \"Action Urgente\")))","v":"OK"}]
[2,"Les programmes de formation sont régulièrement et périodiquement évalués",null,null,null,{"$f":"'A4'!D48*1","v":0.5},{"$f":"IF(F105 >=0.6, \"OK\", IF(F105 >=0.3, \"Action Néccessaire\", IF(F105<=0.3, \"Action Urgente\")))","v":"Action Néccessaire"}]
[3,"Les progrès, réussites et difficultés des apprenants sont régulièrement analysés en cohérence avec les enseignements",null,null,null,{"$f":"'A4'!D49*1","v":0.5},"Action Néccessaire"]
[4,"Les curricula sont périodiquement révisés",null,null,null,{"$f":"'A4'!D50*1","v":0.5},"Action Néccessaire"]
[5,"Les employeurs sont régulièrement consultés",null,null,null,{"$f":"'A4'!D51*1","v":1},"OK"]
[6,"Les responsables des questions de docimologie sont désignés",null,null,null,{"$f":"'A4'!D52*1","v":0},"Action Urgente"]
[7,"Les contenus sont régulièrement actualisés en fonction des avancées de la discipline et de l’évolution des pratiques professionnelles",null,null,null,{"$f":"'A4'!D53*1","v":0.5},"Action Néccessaire"]
["A4.8","Les enseignements sont évalués par les étudiants"]
[1,"Les objectifs de cette évaluation sont définis",null,null,null,{"$f":"'A4'!D55*1","v":0.5},{"$f":"IF(F112 >=0.6, \"OK\", IF(F112 >=0.3, \"Action Néccessaire\", IF(F112<=0.3, \"Action Urgente\")))","v":"Action Néccessaire"}]
[2,"Un répertoire de critères à prendre en compte dans l’évaluation est élaboré",null,null,null,{"$f":"'A4'!D56*1","v":1},{"$f":"IF(F113 >=0.6, \"OK\", IF(F113 >=0.3, \"Action Néccessaire\", IF(F113<=0.3, \"Action Urgente\")))","v":"OK"}]
[3,"L’évaluation des enseignements par les étudiants est effectivement réalisée",null,null,null,{"$f":"'A4'!D57*1","v":1},{"$f":"IF(F114 >=0.6, \"OK\", IF(F114 >=0.3, \"Action Néccessaire\", IF(F114<=0.3, \"Action Urgente\")))","v":"OK"}]
[4,"Des informations sont périodiquement collectées auprès des anciens diplômés",null,null,null,{"$f":"'A4'!D58*1","v":1},{"$f":"IF(F115 >=0.6, \"OK\", IF(F115 >=0.3, \"Action Néccessaire\", IF(F115<=0.3, \"Action Urgente\")))","v":"OK"}]
[5,"Les résultats des évaluations sont pris en compte par les enseignants",null,null,null,{"$f":"'A4'!D59*1","v":0.5},{"$f":"IF(F116 >=0.6, \"OK\", IF(F116 >=0.3, \"Action Néccessaire\", IF(F116<=0.3, \"Action Urgente\")))","v":"Action Néccessaire"}]
[]
["A5.1","Les résultats et effets de la formation sont évalués périodiquement"]
[1,"Le taux des diplômés est mesuré",null,null,null,{"$f":"'A5'!D5*1","v":1},{"$f":"IF(F119 >=0.6, \"OK\", IF(F119 >=0.3, \"Action Néccessaire\", IF(F119<=0.3, \"Action Urgente\")))","v":"OK"}]
[2,"Une enquête de satisfaction est régulièrement menée auprès des étudiants, des diplômés, des enseignants ainsi que des employeurs",null,null,null,{"$f":"'A5'!D6*1","v":1},{"$f":"IF(F120 >=0.6, \"OK\", IF(F120 >=0.3, \"Action Néccessaire\", IF(F120<=0.3, \"Action Urgente\")))","v":"OK"}]
[3,"Le taux d'insertion professionnelle est mesuré",null,null,null,{"$f":"'A5'!D7*1","v":1},{"$f":"IF(F121 >=0.6, \"OK\", IF(F121 >=0.3, \"Action Néccessaire\", IF(F121<=0.3, \"Action Urgente\")))","v":"OK"}]
[]
["A6.1","les infrastructures immobilières"]
[1,"un bâtiment administratif affecté au Conseil de direction, au Rectorat et à leurs services d’appui",null,null,null,{"$f":"Infra!D5*1","v":0.5},{"$f":"IF(F124 >=0.6, \"OK\", IF(F124 >=0.3, \"Action Néccessaire\", IF(F124<=0.3, \"Action Urgente\")))","v":"Action Néccessaire"}]
[2,"des bureaux pour les Responsables des structures composant l’institution ainsi que les Responsables de filière ; ",null,null,null,{"$f":"Infra!D6*1","v":1},{"$f":"IF(F125 >=0.6, \"OK\", IF(F125 >=0.3, \"Action Néccessaire\", IF(F125<=0.3, \"Action Urgente\")))","v":"OK"}]
[3,"des locaux pour la tenue des Conseils ou assemblées et pour l’organisation des cérémonies universitaires",null,null,null,{"$f":"Infra!D7*1","v":1},"OK"]
[4,"un amphithéâtre d’au moins 200 places assises  ( uniquement pour les universités par défaut laisser oui)",null,null,null,{"$f":"Infra!D8*1","v":1},"OK"]
[5,"au moins une salle de cours et une salle de travaux dirigés pour chaque filière de formation ",null,null,null,{"$f":"Infra!D9*1","v":1},"OK"]
[6,"une bibliothèque avec une salle de lecture d’au moins 50 places assises",null,null,null,{"$f":"Infra!D10*1","v":1},"OK"]
[7,"au moins une salle informatique avec connexion Internet",null,null,null,{"$f":"Infra!D11*1","v":1},"OK"]
[8,"un centre médico-social comportant une salle de consultation, un bureau de médecins,une salle de soins infirmiers, une salle d’observation de 4 lits au moins (université par défaut laisser oui)",null,null,null,{"$f":"Infra!D12*1","v":1},"OK"]
[9,"des bureaux pour les enseignants permanents",null,null,null,{"$f":"Infra!D13*1","v":1},"OK"]
[10,"une salle des professeurs avec connexion Internet",null,null,null,{"$f":"Infra!D14*1","v":1},"OK"]
[11,"une salle destinée aux organisations estudiantines ",null,null,null,{"$f":"Infra!D15*1","v":0.5},"Action Néccessaire"]
[12,"un espace affecté aux activités sportives et aux loisirs",null,null,null,{"$f":"Infra!D16*1","v":1},"OK"]
[13,"des points d’eau potable",null,null,null,{"$f":"Infra!D17*1","v":1},"OK"]
[14,"des toilettes clairement identifiées garçons/filles",null,null,null,{"$f":"Infra!D18*1","v":1},"OK"]
["A6.2","les infrastructures (Uniquement pours les institutions en Médecine, Phamarcie, ...) laisser sur oui par défaut pour les autres types d'institution."]
[1,"des salles de travaux pratiques spécifiques aux différentes matières (Physique, chimie, microbiologie, anatomie, physiologie, cytologie et cytopathologie...)",null,null,null,{"$f":"Infra!D20*1","v":1},"OK"]
[2,"des Laboratoires de recherche",null,null,null,{"$f":"Infra!D21*1","v":1},"OK"]
[3,"des sites de stage professionnel ou à défaut, des conventions de partenariat avec des structures publiques ou privées pouvant accueillir les étudiants stagiaire",null,null,null,{"$f":"Infra!D22*1","v":1},"OK"]
[4,"L’amphithéâtre, les salles de cours et de TD doivent être équipés de tables bancs , de tableaux muraux et éventuellement de vidéo projecteurs. ",null,null,null,{"$f":"Infra!D23*1","v":1},"OK"]
[5,"Les salles de TP doivent être équipées de paillasses fonctionnelles avec arrivée d’eau et de gaz ainsi que des équipements techniques conformes à la matière enseignée.",null,null,null,{"$f":"Infra!D24*1","v":1},"OK"]
[6,"Les bibliothèques, qui doivent nécessairement être abonnées à des bases de données bibliographiques, doivent être climatisées et équipées de tables de lecture avec chaises, de meubles de rangement des documents, d’ordinateurs avec connexion Internet.",null,null,null,{"$f":"Infra!D25*1","v":1},"OK"]

{"sheet":"Résultat Graphique","index":9,"n_rows":0,"n_cols":0,"rows_kept":0,"cut":false,"hidden":false,"merged":[]}

{"sheet":"Décision & recom ...","index":10,"n_rows":42,"n_cols":5,"rows_kept":42,"cut":false,"hidden":false,"merged":[[24,1,24,5],[2,1,2,3],[1,1,1,3],[10,1,10,5],[12,1,22,5]]}
[]
[null,{"$f":"'Page de Garde'!A11","v":"NOM DE L'ETABLISSEMENT EVALUE"},null,null,"Favorable"]
[null,{"$f":"'Page de Garde'!A13","v":"INTITULE DE L'OFFRE OU DU DIPLÔME SOUMIS AU PRED"},null,null,"Défavorable"]
[]
[]
[null,"NOM & PRENOMS EXPERT",null,"WOLOU Komi METOU Brusil KOULAYOM Henri"]
[null,"ADRESSE (Institution, email & téléphone)",null,"Université de Lomé"]
[null,"DECISION EXPERT"]
[]
[]
[null,"Récapitulatif des observations"]
[]
[null,{"$f":"_xlfn.CONCAT(\n    'A1'!I5, \"---\",\n    'A1'!I6, \"---\",\n    'A1'!I7, \"---\",\n    'A1'!I8, \"---\",\n    'A1'!I9, \"---\",\n    'A1'!I10, \"---\",\n    'A1'!I11, \"---\",\n    'A1'!I12,\n    'A2'!I5, \"---\",\n    'A2'!I6, \"---\",\n    'A2'!I7, \"---\",\n    'A2'!I8, \"---\",\n    'A2'!I9, \"---\",\n    'A2'!I10, \"---\",\n    'A2'!I11, \"---\",\n    'A2'!I12, \"---\",\n    'A2'!I13, \"---\",\n    'A2'!I14, \"---\",\n    'A2'!I15, \"---\",\n    'A2'!I16, \"---\",\n    'A2'!I17, \"---\",\n    'A2'!I18, \"---\",\n    'A2'!I19, \"---\",\n    'A2'!I20, \"---\",\n    'A2'!I21, \"---\",\n    'A2'!I22, \"---\",\n    'A2'!I23, \"---\",\n    'A2'!I24, \"---\",\n    'A2'!I25, \"---\",\n    'A2'!I26, \"---\",\n    'A2'!I27, \"---\",\n    'A2'!I28, \"---\",\n    'A2'!I29, \"---\",\n    'A3'!I5, \"---\",\n    'A3'!I6, \"---\",\n    'A3'!I7, \"---\",\n    'A3'!I8, \"---\",\n    'A3'!I9, \"---\",\n    'A3'!I10, \"---\",\n    'A3'!I11, \"---\",\n    'A3'!I12, \"---\",\n    'A3'!I13, \"---\",\n    'A3'!I14, \"---\",\n    'A3'!I15, \"---\",\n    'A3'!I16, \"---\",\n    'A3'!I17, \"---\",\n    'A3'!I18, \"---\",\n    'A3'!I19,\n    'A4'!I5, \"---\",\n    'A4'!I6, \"---\",\n    'A4'!I7, \"---\",\n    'A4'!I8, \"---\",\n    'A4'!I9, \"---\",\n    'A4'!I10, \"---\",\n    'A4'!I11, \"---\",\n    'A4'!I12, \"---\",\n    'A4'!I13, \"---\",\n    'A4'!I14, \"---\",\n    'A4'!I15, \"---\",\n    'A4'!I16, \"---\",\n    'A4'!I17, \"---\",\n    'A4'!I18, \"---\",\n    'A4'!I19, \"---\",\n    'A4'!I20, \"---\",\n    'A4'!I21, \"---\",\n    'A4'!I22, \"---\",\n    'A4'!I23, \"---\",\n    'A4'!I24, \"---\",\n    'A4'!I25, \"---\",\n    'A4'!I26, \"---\",\n    'A4'!I27, \"---\",\n    'A4'!I28, \"---\",\n    'A4'!I29, \"---\",\n    'A4'!I30, \"---\",\n    'A4'!I31, \"---\",\n    'A4'!I32, \"---\",\n    'A4'!I33, \"---\",\n    'A4'!I34, \"---\",\n    'A4'!I35, \"---\",\n    'A4'!I36, \"---\",\n    'A4'!I37, \"---\",\n    'A4'!I38, \"---\",\n    'A4'!I39, \"---\",\n    'A4'!I40, \"---\",\n    'A4'!I41, \"---\",\n    'A4'!I42, \"---\",\n    'A4'!I43, \"---\",\n    'A4'!I44, \"---\",\n    'A4'!I45, \"---\",\n    'A4'!I46, \"---\",\n    'A4'!I47, \"---\",\n    'A4'!I48, \"---\",\n    'A4'!I49, \"---\",\n    'A4'!I50, \"---\",\n    'A4'!I51, \"---\",\n    'A4'!I52, \"---\",\n    'A4'!I53, \"---\",\n    'A4'!I54, \"---\",\n    'A4'!I55, \"---\",\n    'A4'!I56, \"---\",\n    'A4'!I57, \"---\",\n    'A4'!I58, \"---\",\n    'A4'!I59,\n    'A5'!I5, \"---\",\n    'A5'!I6, \"---\",\n    'A5'!I7,\n    Infra!I5, \"---\",\n    Infra!I6, \"---\",\n    Infra!I7, \"---\",\n    Infra!I8, \"---\",\n    Infra!I9, \"---\",\n    Infra!I10, \"---\",\n    Infra!I11, \"---\",\n    Infra!I12, \"---\",\n    Infra!I13, \"---\",\n    Infra!I14, \"---\",\n    Infra!I15, \"---\",\n    Infra!I16, \"---\",\n    Infra!I17, \"---\",\n    Infra!I18, \"---\",\n    Infra!I19, \"---\",\n    Infra!I20, \"---\",\n    Infra!I21, \"---\",\n    Infra!I22, \"---\",\n    Infra!I23, \"---\",\n    Infra!I24, \"---\",\n    Infra!I25\n)","v":"Prière de préciser les prevues---Preuves non disponibles---preuves incomplètes------------------------------------------------------------------------------------------------------------------------------------------------------------------------------------------------------------------------------------------------------------------------------------------------------Document disponible---Document indisponible---élements de preuve absents------------------------------------------------------------"}]
[]
[]
[]
[]
[]
[]
[]
[]
[]
[]
[]
[null,"Recommandations"]
[]
[null,"Référence",null,"Action"]
[1]
[2]
[3]
[4]
[5]
[6]
[7]
[8]
[9]
[10]
[11]
[12]
[13]
[14]
[15]

{"sheet":"RF","index":11,"n_rows":20,"n_cols":1,"rows_kept":20,"cut":false,"hidden":true,"merged":[]}
["Références"]
["A.1.1. L’offre de formation répond à une demande de formation. "]
["A.1.2 .Des liens sont établis avec les milieux socioprofessionnels de la zone "]
["A.2.1  L’offre de formation est adaptée aux spécificités de l’environnement local, scientifique et socioprofessionnel et tient compte du contexte national et international."]
["A.2.2 L’offre de formation est pertinente et en cohérence avec le projet de l’institution et ses ressources. "]
["A.2.3  L’offre de formation comporte une ouverture pluridisciplinaire."]
["A.3.1  L’institution participe à des réseaux, nationaux, régionaux et internationaux ayant trait à la formation. "]
["A.3.2  L’offre de formation s’inscrit dans un cadre national et international. "]
["A.3.3  L’institution développe des partenariats et passe des conventions avec des établissements au plan national, régional et international. "]
["A.4.1  L’organisation pédagogique est clairement définie et conforme aux exigences du LMD"]
["A.4.2  Les Unités d’enseignement sont définies conformément aux normes du CAMES. "]
["A.4.3 L'offre de formation établit clairement l'articulation entre la formation et la recherche aux niveaux master et doctorat"]
["A.4.4.  Les outils et innovations pédagogiques sont régulièrement évalués "]
["A.4.5  L’encadrement pédagogique est adéquat."]
["A.4.6  L'évaluation des apprentissages est clairement définie, respectée et diffusée."]
["A.4.7 Les enseignements font l’objet d’une évaluation régulière. "]
["A.4.8 Les enseignements sont évaluéspar les étudiants. "]
["A.5.1 Les résultats et effets de la formation sont évalués périodiquement"]
["A.6.1  les infrastructures immobilières"]
["A.6.2 les infrastructures (Uniquement pours les institutions en Médecine, Phamarcie, ...)"]